{"text_format":"1","workbook":"xlsx","n_sheets":4,"sheets":["AUTORÍA","CALCULADORA","MEDICAMENTOS_CON_PAUTA_ON-OFF","Mensaje_adherencia"],"not_rendered":{"charts":0,"images":3,"macros":1,"external_links":0,"defined_names":2,"comments":0,"pivot_tables":0},"unopened":[],"bounds":{"document_bytes":16777216,"sheet_cells":100000,"rows_first":2000,"rows_last":500,"rows_between":2000,"halvings":0,"cell_chars":16384,"cell_head_chars":4096},"cells_cut":0,"cells_raw":0,"read":"whole","date_system":"1900"}

{"sheet":"AUTORÍA","index":0,"n_rows":4,"n_cols":2,"rows_kept":4,"cut":false,"hidden":false,"merged":[]}
[null,"© 2022 Beatriz Bernárdez, Inés Soto, Enrique Bandin, Manuel Tourís, Elena López, Alba García e Irene Zarra."]
[null,"El formulario digital ADHeCuaR es propiedad de Beatriz Bernárdez, Inés Soto, Enrique Bandin, Manuel Tourís, Elena López, Alba García e Irene Zarra.  ADHeCuaR ha sido diseñado y creado por los autores para su uso exclusivo por Servicios de Farmacia Hospitalaria bajo la supervisión y/o actuación profesional de un farmacéutico especialista en Farmacia Hospitalaria. Las titulares de los derechos de propiedad intelectual autorizan el uso y explotación no comercial de ADHECUAR únicamente a los servicios de Farmacia Hospitalaria bajo la supervisión y/o actuación profesional de un farmacéutico especialista en Farmacia Hospitalaria. Cualquier uso u explotación de ADHECUAR en el que no intervenga un farmacéutico especialista en Farmacia Hospitalaria requerirá autorización expresa y por escrito de las propiedades de la herramienta metodológica de software ADHeCuaR. "]
[]
[null,"Con la colaboración de José Luis Eiris y adhefar"]

{"sheet":"CALCULADORA","index":1,"n_rows":27,"n_cols":3,"rows_kept":27,"cut":false,"hidden":false,"merged":[[23,1,25,1],[0,0,0,1],[7,0,7,1],[15,0,15,1],[16,0,16,1],[18,0,18,1],[19,1,21,1],[22,0,22,1]]}
["DATOS A CUMPLIMENTAR"]
["Fecha de dispensación previa:","2022-02-08"]
["Nº de comprimidos/día:",1,true]
["Medicación disponible:",15,true]
["Nº de comprimidos remanentes a fecha de hoy:",1]
["Adherencia reportada por el paciente:",1,true]
[null,null,true]
["CÁLCULOS",null,false]
["Fecha de hoy:",{"$f":"TODAY()","v":"2022-02-24"},false]
["Nº de días desde última dispensación:",{"$f":"B9-B2","v":16}]
["Nº de comprimidos tomados:",{"$f":"(B4-B5)","v":14}]
["Nº de comprimidos que debería haber tomado:",{"$f":"B10*B3","v":16}]
["Adherencia:",{"$f":"(B11/B12)","v":0.875}]
["Mensaje adherencia (<90%):",{"$f":"IF(B13<0.9,\"Si\",\"No\")","v":"Si"}]
[]
["INFORME"]
[{"$f":"(Mensaje_adherencia!D1)&CHAR(10)&\"Evaluación de Adherencia Terapéutica\"&CHAR(10)&\"Período estudiado: desde \"&CONCATENATE(TEXT(B2,\"dd/mm/aa\"),\" hasta \",TEXT(B9,\"dd/mm/aa\"))&CHAR(10)&\"Adherencia por método objetivo (dispensación + contaje): \"&TEXT(B13,\"0.0%\")&CHAR(10)&\"Adherencia reportada por el paciente: \"&TEXT(B6,\"0.0%\")&CHAR(10)&IF(B14=\"Si\",Mensaje_adherencia!D2,\"\")&CHAR(10)&IF(B14=\"Si\",Mensaje_adherencia!D3,\"\")&CHAR(10)&IF(B13>110,Mensaje_adherencia!D3,\"\")","v":"Unidad Farma Onco\nEvaluación de Adherencia Terapéutica\nPeríodo estudiado: desde 08/02/22 hasta 24/02/22\nAdherencia por método objetivo (dispensación + contaje): 88%\nAdherencia reportada por el paciente: 100%\nPaciente con adherencia subóptima. Es importante recordar, que la adherencia es multidimensional y que todos los profesionales sanitarios que estamos a su alrededor, podemos contribuir a su mejora.\nValoración de las causas de la adherencia subóptima en base a la consulta farmacéutica:\n"}]
[{"$f":"IF(B14=\"Si\",CAUSAS, NADA)","v":"CAUSAS"},"INTERVENCIONES"]
["INVOLUTARIAS",0]
["Olvido    Si/No","Simplificación pautas, plan farmacoterapéutico\nUso pastilleros, SPDs\nAlarmas, Apps\nInvolucrar a un cuidador"]
["Dificultad pautas    Si/No",0]
["Otras    Si/No",0]
["INTENCIONALES",0]
["Intolerancia a efectos adverso    Si/No","Mejora de la comunicación profesional sanitario-paciente\nIntervenciones educacionales\nIntervenciones afectivas\nIntervenciones cognitivo-conductuales"]
["Pérdida de confianza    Si/No",0]
["Otras    Si/No",0]
["NO IDENTIFICADAS","Combinación de intervenciones"]

{"sheet":"MEDICAMENTOS_CON_PAUTA_ON-OFF","index":2,"n_rows":25,"n_cols":3,"rows_kept":25,"cut":false,"hidden":false,"merged":[[21,1,23,1],[0,0,0,1],[7,0,7,1],[13,0,13,1],[16,0,16,1],[17,1,19,1],[14,0,14,1],[20,0,20,1]]}
["DATOS A CUMPLIMENTAR"]
["Días ON del ciclo:",10,"Olvido    No"]
["Nº de comprimidos/día:",1,false]
["Medicación disponible en fecha de inicio ciclo:",15,false]
["Nº de comprimidos remanentes a fecha de hoy:",0]
["Adherencia reportada por el paciente:",1]
[]
["CÁLCULOS",null,false]
["Nº de comprimidos tomados:",{"$f":"(B4-B5)","v":15},false]
["Nº de comprimidos que debería haber tomado:",{"$f":"B3*B2","v":10}]
["Adherencia:",{"$f":"(B9/B10)","v":1.5}]
["Mensaje adherencia (<90%):",{"$f":"IF(B11<0.9,\"Si\",\"No\")","v":"No"}]
[]
["INFORME"]
[{"$f":"(Mensaje_adherencia!D1)&CHAR(10)&\"Evaluación de Adherencia Terapéutica\"&CHAR(10)&\"Período estudiado: \"&(TEXT(B2,\"00\")&CHAR(10)&\"Adherencia por método objetivo (dispensación + contaje): \"&TEXT(B11,\"0.0%\")&CHAR(10)&\"Adherencia reportada por el paciente: \"&TEXT(B6,\"0.0%\")&CHAR(10)&IF(B12=\"Si\",Mensaje_adherencia!D2,\"\")&CHAR(10))&IF(B12=\"Si\",Mensaje_adherencia!D3,\"\")&CHAR(10)","v":"Unidad Farma Onco\nEvaluación de Adherencia Terapéutica\nPeríodo estudiado: 10\nAdherencia por método objetivo (dispensación + contaje): 150%\nAdherencia reportada por el paciente: 100%\n\n\n"}]
[{"$f":"IF(B12=\"Si\",CAUSAS, NADA)","v":{"$error":"#REF!"}},{"$error":"#REF!"}]
[{"$error":"#REF!"},{"$error":"#REF!"}]
[{"$error":"#REF!"},{"$error":"#REF!"},"Olvido    Si"]
[{"$error":"#REF!"},{"$error":"#REF!"}]
[{"$error":"#REF!"},{"$error":"#REF!"}]
[{"$error":"#REF!"},{"$error":"#REF!"}]
[{"$error":"#REF!"},{"$error":"#REF!"}]
[{"$error":"#REF!"},{"$error":"#REF!"}]
[{"$error":"#REF!"},{"$error":"#REF!"}]
[{"$error":"#REF!"},{"$error":"#REF!"}]

{"sheet":"Mensaje_adherencia","index":3,"n_rows":10,"n_cols":4,"rows_kept":10,"cut":false,"hidden":false,"merged":[[18,1,20,1],[1,0,1,1],[2,1,4,1],[6,1,8,1],[13,0,13,1],[14,1,16,1],[5,0,5,1]]}
["CAUSAS","INTERVENCIONES",null,"Unidad Farma Onco"]
["INVOLUTARIAS",null,null,"Paciente con adherencia subóptima. Es importante recordar, que la adherencia es multidimensional y que todos los profesionales sanitarios que estamos a su alrededor, podemos contribuir a su mejora."]
["Olvido    Si/No","Simplificación pautas, plan farmacoterapéutico\nUso pastilleros, SPDs\nAlarmas, Apps\nInvolucrar a un cuidador",null,"Valoración de las causas de la adherencia subóptima en base a la consulta farmacéutica:"]
["Dificultad pautas    Si/No"]
["Otras    Si/No"]
["INTENCIONALES"]
["Intolerancia a efectos adverso    Si/No","Mejora de la comunicación profesional sanitario-paciente\nIntervenciones educacionales\nIntervenciones afectivas\nIntervenciones cognitivo-conductuales"]
["Pérdida de confianza    Si/No"]
["Otras    Si/No"]
["NO IDENTIFICADAS","Combinación de intervenciones"]